Workbook

Sheet List1
A3: Obec , IČ: Náklo, 00299251
A5: Rozpočtové opatření č. 16 - 19. prosince 2022
A7: V souladu s ustanovením § 16 zákona č. 250/2000 Sb., o rozpočtových pravidlech územních rozpočtů dojde k rozpočtovému
A8: opatření v případě změn rozpočtových prostředků na závazných ukazatelích.
A10: Rozpočtové opatření č. 16/2022 (předloženo na zasedání rady obce 19. 12. 2022) a doplněno při jednání na rady obce
A12: PŘÍJMY
A13: PAR | B13: POL | C13: UZ | D13: PARAGRAF | E13: POLOŽKA | F13: Rozpočet na rok 2022 | G13: Rozpočet po změnách | H13: změna ROZP | I13: ROZP po ZMĚNĚ | J13: POZNÁMKA
B14: 1111 | E14: Příjem z daně z příjmů FO placené plátci | F14: 3803000 | G14: 3803000 | H14: 547825.29 | I14: =H14+G14 -> 4350825.29
A15: 0 | B15: 1112 | E15: Daň z příjmů fyzických osob placená poplatníky | F15: 161000 | G15: 303359.01 | H15: 90075.35 | I15: =H15+G15 -> 393434.36
B16: 1113 | E16: Příjem z DPFO vybírané srážkou ze mzdy | F16: 633000 | G16: 784985.07 | H16: 89557.75 | I16: =H16+G16 -> 874542.82
B17: 1121 | E17: Příjem z daně z příjmů právnických osob | F17: 4736000 | G17: 5433337.3 | H17: 1181310.26 | I17: =H17+G17 -> 6614647.56
B18: 1122 | E18: DPPO | F18: 1000000 | G18: 1000000 | H18: -253110 | I18: 746890
B19: 1211 | E19: Příjem z DPH | F19: 13275000 | G19: 13823427.18 | H19: 1193690.13 | I19: 15017117.31
A20: 0 | B20: 1345 | E20: příjem z poplatku za obecní systém odpadového hospodářství | F20: 480000 | G20: 711340 | H20: 31926 | I20: 743266 | J20: komunální odpad
A21: 0 | B21: 1361 | E21: Příjem ze správních poplatků | F21: 15000 | G21: 15000 | H21: 3100 | I21: 18100
A22: 0 | B22: 1381 | E22: Daň z hazardních her | F22: 100000 | G22: 212377.62 | H22: 212.46 | I22: 212590.08
A23: 0 | B23: 1382 | E23: Př. Ze zruš.odvodu z loterií | F23: 0 | G23: 0 | H23: 152.21 | I23: 152.21
A24: 0 | B24: 1511 | E24: Příjem z daně z nemovitých věcí | F24: 1700000 | G24: 1700000 | H24: 115308.44 | I24: 1815308.44
B25: 2420 | E25: spl. Půjč.prostředky | F25: 844745.7 | G25: 1804624.7 | H25: -213555 | I25: 1591069.7 | J25: Návratná finanční výpomoc Housátko
B26: 4111 | E26: Neinvestiční přijaté transfery | F26: 0 | G26: 191761.02 | H26: 28200 | I26: 219961.02
A27: 0 | B27: 4216 | E27: Ostatní investiční přijeté transfery ze SR | F27: 2319872 | G27: 2000000 | H27: 2416046 | I27: 4416046 | J27: SFDI
D28: bez ODPA | F28: 30550319.7 | G28: 33319751.04 | H28: =SUM(H14:H27) -> 5230738.89 | I28: =H28+G28 -> 38550489.93
A29: 2321 | B29: 2111 | E29: Příjmy z poskytování služeb a výrobků | F29: 1200000 | G29: 1399306 | H29: 94784 | I29: =H29+G29 -> 1494090 | J29: stočné
A30: 2321 | D30: Odvádění a čištění odpadních vod a nakl.s kaly | F30: 1200000 | G30: 1200000 | H30: =H29 -> 94784 | I30: 1294784
A31: 3314 | B31: 2111 | E31: Příjmy z poskyt.služeb | F31: 0 | G31: 0 | H31: 965 | I31: 965 | J31: poplatky knihovna
A32: 3314 | D32: Činnosti knihovnické | F32: 0 | G32: 0 | H32: =H31 -> 965 | I32: =I31 -> 965
A33: 3612 | B33: 2132 | E33: Příjem z pronájmu nebo pachtu | F33: 740000 | G33: 740000 | H33: 748 | I33: =H33+G33 -> 740748
A34: 3612 | D34: Bytové hospodářství | F34: 1017000 | G34: 1017000 | H34: =H33 -> 748 | I34: =H34+G34 -> 1017748
A35: 3613 | B35: 2132 | E35: Příjem z pronájmu nebo pachtu | F35: 130000 | G35: 136917 | H35: 12859 | I35: =H35+G35 -> 149776
A36: 3613 | D36: Nebytové hospodářství | F36: 130000 | G36: 130000 | H36: =H35 -> 12859 | I36: =H36+G36 -> 142859
A37: 3639 | B37: 2133 | E37: příjem z pronájmu | F37: 22000 | G37: 22000 | H37: 17696 | I37: 39696 | J37: náhrada za zřízení věcného břemene
A38: 3639 | D38: Komunální služby a územní rozvoj j.n. | F38: 125000 | G38: 132020 | H38: =H37 -> 17696 | I38: 143679
A39: 3725 | B39: 2324 | E39: přijaté neinvestiční příspěvky a náhrady | F39: 300000 | G39: 300000 | H39: 60915.68 | I39: 360915.68
A40: 3725 | D40: Využívání a zneškodňování komunálních odpadů | F40: 300000 | G40: 300000 | H40: =H39 -> 60915.68 | I40: 360915.68
D41: Celkem ZMĚNY v PŘÍJMECH | H41: =+H40+H38+H36+H34+H32+H30+H28 -> 5418706.57
D43: Celkem PŘÍJMY | F43: 33700619.7 | H43: =H41 -> 5418706.57 | I43: 45875687.81
A45: VÝDAJE:
A46: PAR | B46: POL | C46: UZ | D46: PARAGRAF | E46: POLOŽKA | F46: Rozpočet na rok 2022 | G46: Rozpočet po změnách | H46: změna ROZP | I46: ROZP po ZMĚNĚ | J46: POZNÁMKA
B47: 8124 | E47: Uhrazené splátky dloouhodob.půjč.prost. | F47: 3084000 | G47: 3084000 | H47: -166656 | I47: =H47+G47 -> 2917344 | J47: splátky úvěru silnice Mezice a L39
A48: 2219 | B48: 5141 | E48: úroky vlastní | F48: 180000 | G48: 194037.4 | H48: 8094.32 | I48: =H48+G48 -> 202131.72 | J48: úroky z úvěru
A49: 2219 | D49: Ostatní záležitosti pozemních komunikací | F49: 247510 | G49: 1667553.69 | H49: =H48 -> 8094.32 | I49: =H49+G49 -> 1675648.01
A50: 3349 | B50: 5136 | E50: knihy a odborné listinné inf. Prostředky | F50: 45000 | G50: 50000 | H50: 1996 | I50: =H50 -> 1996 | J50: zpravodaj
A51: 3349 | D51: Ostatní záležitosti sdělovacích prostředků | F51: 45000 | G51: 50000 | H51: =H50 -> 1996 | I51: =H51+G51 -> 51996
A52: 3429 | B52: 5222 | E52: neinvestiční transfery spolkům | F52: 270000 | G52: 270000 | H52: 14246.58 | I52: 284246.58 | J52: dary spolkům
A53: 3429 | B53: 6121 | E53: stavby | F53: 5180352 | G53: 4742599.49 | H53: 300000 | I53: 5042599.49 | J53: volnočasový areál
A54: 3429 | D54: Ostatní zájmová činnost a rekreace | F54: 5925352 | G54: 6223723.86 | H54: =H53+H52 -> 314246.58 | I54: =H54+G54 -> 6537970.44
A55: 6112 | B55: 5023 | E55: odměny členů zastupitelstva | F55: 1000000 | G55: 1120000 | H55: 70655 | I55: 1190655 | J55: zastupitelstvo
A56: 6112 | D56: Zastupitelstva obcí | F56: 1355000 | G56: 1475000 | H56: =H55 -> 70655 | I56: 1545655
A57: 6171 | B57: 5011 | E57: platy | F57: 1800000 | G57: 1900000 | H57: 14105 | I57: 1914105 | J57: platy
A58: 6171 | B58: 5031 | E58: sociální pojištění | F58: 410000 | G58: 470000 | H58: 17402 | I58: 487402 | J58: sociální pojištění
A59: 6171 | B59: 5137 | E59: drobný dlouhodobý majetek | F59: 30000 | G59: 208871 | H59: 62597.88 | I59: 271468.88
A60: 6171 | B60: 5169 | E60: nákup ostatních služeb | F60: 1500000 | G60: 1520000 | H60: 5017727.36 | I60: 6537727.36
A61: 6171 | B61: 5179 | E61: ostatní nákupy jinde nezařazené | F61: 40000 | G61: 40000 | H61: 12973.52 | I61: 52973.52
A62: 6171 | B62: 5221 | E62: neinv.transf. Ústavům | F62: 5000 | G62: 5000 | H62: 11000 | I62: 16000 | J62: dary ústavům
A63: 6171 | B63: 5492 | E63: dary fyzickým osobám | F63: 0 | G63: 6000 | H63: 17000 | I63: 23000 | J63: dary fyzickým osobám
A64: 6171 | D64: Činnost místní správy | F64: 5427999 | G64: 11155691.85 | H64: =SUM(H57:H63) -> 5152805.76 | I64: =H64+G64 -> 16308497.61
A65: 6310 | B65: 5163 | E65: služby peněžním ústavům | F65: 22000 | G65: 22000 | H65: 36.81 | I65: 22036.81 | J65: bankovní poplatky
A66: 6310 | D66: obecné příjmy a výdaje | F66: 22000 | G66: 22000 | H66: =SUM(H65) -> 36.81 | I66: =H66+G66 -> 22036.81
A67: 3745 | B67: 6121 | E67: stavby | F67: 150000 | G67: 130000 | H67: 3100 | I67: 133100 | J67: plavisko
A68: 3745 | D68: péče o vzhled obcí a veřejnou zeleň | F68: 480600 | G68: 647320 | H68: =SUM(H67) -> 3100 | I68: 650420
A69: 3725 | B69: 5169 | E69: nákup ostatních služeb | F69: 300000 | G69: 464575.8 | H69: 14269.1 | I69: 478844.9 | J69: komunální odpad
A70: 3725 | D70: využívání a zneškodňování komunálních odpadů | F70: 423000 | G70: 598000 | H70: =SUM(H69) -> 14269.1 | I70: =H70+G70 -> 612269.1
A71: 3632 | B71: 5139 | E71: nákup materiálu jinde nazařazený | F71: 5000 | G71: 11570 | H71: 799 | I71: 12369 | J71: hrablo hřbitov
A72: 3632 | D72: pohřebnictví | F72: 153500 | G72: 166804.37 | H72: =SUM(H71) -> 799 | I72: =H72+G72 -> 167603.37
A73: 3639 | B73: 6130 | E73: pozemky | F73: 54935.7 | G73: 59384 | H73: 19360 | I73: 78744 | J73: pozemek 228/3 kú Mezice
A74: 3639 | D74: komunální služby a územní rozvoj | F74: 7667935.75 | G74: 7271048.95 | H74: =SUM(H73) -> 19360 | I74: =H74+G74 -> 7290408.95
D75: Celkem ZMĚNY ve VÝDAJÍCH | H75: =+H74+H72+H70+H68+H66+H64+H56+H54+H51+H49+H47 -> 5418706.57
D77: Celkem VÝDAJE | F77: 30616619.7 | H77: =H75 -> 5418706.57 | I77: =49751253.28 -> 49751253.28
D79: Celkem 5XXX | G79: 26880442.95 | H79: 2162686.31 | I79: 29043129.26
D80: Celkem 6XXX | G80: 12687107.25 | H80: 0 | I80: 12687107.25
A83: FINANCOVÁNÍ
A84: PAR | B84: POL | C84: UZ | D84: PARAGRAF | E84: POLOŽKA | F84: Rozpočet na rok 2022 | G84: Upravený ROZP | H84: změna ROZP | I84: ROZP po ZMĚNĚ | J84: POZNÁMKA
D85: Celkem ZMĚNY ve FINANCOVÁNÍ: | H85: 0
D88: REKAPITULACE: | F88: Rozpočet na rok 2022 | H88: změna ROZP | I88: ROZP po ZMĚNĚ
D90: Celkem PŘÍJMY | F90: 33700619.7 | H90: =H41 -> 5418706.57 | I90: =I43 -> 45875687.81
D91: Celkem FINANCOVÁNÍ: | F91: -3084000 | H91: -166656 | I91: 3875565.47
D92: Celkem PŘÍJMY+FINANCOVÁNÍ | F92: 30616619.7 | H92: =H75+H91 -> 5252050.57 | I92: =I91+I90 -> 49751253.28
D94: Celkem VÝDAJE | F94: 30616619.7 | H94: =H92+166656 -> 5418706.57 | I94: 49751253.28
A97: Důvodová zpráva k rozpočtovému opatření č. 16 /2022
A99: Přesun prostředků v rámci nezajištěného výdaje je Čerpán z rezervy obce.
A101: Správce rozpočtu :
A103: Starosta obce :
A105: ZO schvaluje dne 19. 12. 2022 rozpočtové opatření č. 16/2022 v předloženém rozsahu.

Sheet List2
A1: TEXTY PRO FORMULÁŘ ÚPRAVA ROZPOČTU - na začátek kopírují se řádky 3-13
A2: poznámka: Texty, které budou přenášeny z tohoto formuláře, musí být zapsány pouze ve sloupci A
A5: Obec , IČ: Náklo, 00299251
A7: Rozpočtové změny roku 2019 -duben
A9: V souladu s ustanovením § 16 zákona č. 250/2000 Sb., o rozpočtových pravidlech územních rozpočtů dojde k rozpočtovému
A10: opatření v případě změn rozpočtových prostředků na závazných ukazatelích.
A12: Rozpočtové opatření č. 1/2019 (předloženo na ZQ 6. 6. 2018) a doplněno při jednání na ZO
A14: TEXTY PRO FORMULÁŘ ÚPRAVA ROZPOČTU - na začátek kopírují se řádky 16-32
A16: Důvodová zpráva k rozpočtovému opatření č. 1/2019
A18: Přesun prostředků v rámci nezajištěného výdaje je Čerpán z rezervy obce.
A20: Správce rozpočtu :
A22: Starosta obce :
A24: ZO schvaluje dne 6. 6. 2018 rozpočtové opatření č. 3/2018 v předloženém rozsahu Usnesením č. 1038/1860

Sheet List3
